bitfinex-derivatives/quotes_SOLF0:USTF0_20250111
["timestamp","ask_amount","ask_price","bid_price","bid_amount"]
[1736630923659,7.55984535,191.23,191.19,2.616]
[1736630925366,7.55984535,191.21,191.19,2.616]
[1736630926566,7.55984535,191.21,191.17,2.6162]
[1736630927162,10.17594535,191.19,191.1,1.5164]
[1736630927463,7.55984535,191.17,191.11,7.55984535]
[1736630928461,7.55984535,191.17,191.14,2.6167]
[1736630928866,7.55984535,191.15,191.12,2.617]
[1736630929765,7.55984535,191.15,191.13,2.6169]
[1736630929959,7.55984535,191.17,191.1,7.55984535]
[1736630930669,7.55984535,191.15,191.12,2.617]
[1736630931171,7.55984535,191.15,191.1,7.55984535]
[1736630931367,7.55984535,191.15,191.1,2.6172]
[1736630931670,7.55984535,191.13,191.09,5.81179594]
[1736630931963,4.7357,191.23,190.97,61.59860875]
[1736630932166,7.55984535,191.11,191.05,7.55984535]
[1736630932559,7.55984535,191.12,191.05,7.55984535]
[1736630932764,7.55984535,191.14,191.09,7.55984535]
[1736630932963,4.7357,191.23,191.09,7.55984535]
[1736630933164,7.55984535,191.16,191.12,2.617]
[1736630934874,7.55984535,191.16,191.11,2.6171]
[1736630935866,2.6166,191.15,191.11,2.6171]
[1736630940674,2.6163,191.18,191.14,2.6167]
[1736630940972,7.55984535,191.21,191.15,7.55984535]
[1736630941174,2.616,191.2,191.15,10.17634535]
[1736630941673,10.17584535,191.2,191.15,10.17634535]
[1736630942271,10.17584535,191.2,191.16,2.6164]
[1736630942474,10.17584535,191.2,191.15,7.55984535]
[1736630942475,7.55984535,191.2,191.15,7.55984535]
[1736630942670,2.6158,191.22,191.17,7.55984535]
[1736630944076,2.6158,191.22,191.1,2.6173]
[1736630944278,7.55984535,191.21,191.16,7.55984535]
[1736630944478,10.17564535,191.21,191.16,7.55984535]
[1736630944678,7.55984535,191.21,191.05,5.32]
[1736630944878,7.55984535,191.21,191.15,7.55984535]
[1736630945378,2.6159,191.2,191.15,10.17634535]
[1736630945778,2.6159,191.2,191.15,7.55984535]
[1736630945976,10.17564535,191.21,191.17,2.6163]
[1736630946674,2.6162,191.19,191.14,2.6166]
[1736630946878,7.55984535,191.21,191.14,7.55984535]
[1736630947280,2.6162,191.19,191.15,2.6166]
[1736630947481,7.55984535,191.19,191.14,7.55984535]
[1736630948080,7.55984535,191.19,191.12,7.55984535]
[1736630948673,2.6162,191.18,191.14,2.6166]
[1736630951274,7.55984535,191.15,191.12,2.6169]
[1736630955082,2.6165,191.16,191.13,2.6169]
[1736630955977,7.55984535,191.17,191.13,2.6169]
[1736630956578,7.55984535,191.17,191.12,7.55984535]
[1736630956881,7.55984535,191.2,191.14,7.55984535]
[1736630957274,11.68604535,191.22,191.18,2.6162]
[1736630957681,9.07034535,191.22,191.16,7.55984535]
[1736630958189,2.6158,191.21,191.17,2.6163]
[1736630959584,9.07034535,191.22,191.15,2.6166]
[1736630959585,2.6161,191.19,191.15,2.6166]
[1736630959780,7.55984535,191.18,191.12,7.55984535]
[1736630960380,7.55984535,191.16,191.1,7.55984535]
[1736630961382,7.55984535,191.19,191.14,7.55984535]
[1736630962085,7.55984535,191.19,191.17,2.6162]
[1736630965687,7.55984535,191.19,191.15,2.6165]
[1736630965981,7.55984535,191.19,191.14,7.55984535]
[1736630966685,7.55984535,191.19,191.16,2.6164]
[1736630969382,2.6159,191.2,191.17,2.6163]
[1736630971692,7.55984535,191.21,191.05,33.45930437]
[1736630971693,1.5706,191.23,191.18,7.55984535]
[1736630971887,1.5376,191.26,191.18,7.55984535]
[1736630972086,7.55984535,191.25,191.18,7.55984535]
[1736630972290,7.55984535,191.25,191.14,3.0547]
[1736630972589,7.55984535,191.25,191.2,7.55984535]
[1736630972789,7.55984535,191.25,191.21,2.6158]
[1736630972790,10.17504535,191.25,191.21,2.6158]
[1736630974494,2.6157,191.22,191.17,2.6163]
[1736630974794,2.6157,191.22,191.17,7.55984535]
[1736630975191,2.6157,191.22,191.19,2.616]
[1736630976898,10.17534535,191.23,191.19,2.616]
[1736630977296,2.6155,191.23,191.19,10.17584535]
[1736630977491,2.6155,191.23,191.19,7.55984535]
[1736630977696,7.55984535,191.25,191.2,2.6159]
[1736630977896,2.6154,191.24,191.2,2.6159]
[1736630978794,10.17514535,191.25,191.19,7.55984535]
[1736630978995,2.6153,191.25,191.19,7.55984535]
[1736630979701,2.6153,191.25,191.21,2.6157]
[1736630980093,2.6153,191.25,191.21,10.17554535]
[1736630980701,2.6153,191.25,191.21,2.6157]
[1736630984301,380.32846336,191.38,191.21,7.55984535]
[1736630984501,380.32846336,191.38,191.25,2.6151]
[1736630984502,2.6147,191.29,191.25,2.6151]
[1736630985004,2.6148,191.28,191.25,2.6151]
[1736630986502,10.17464535,191.28,191.25,2.6151]
[1736630987905,7.55984535,191.28,191.25,2.6151]
[1736630989205,10.17464535,191.28,191.25,2.6151]
[1736630990506,2.6148,191.28,191.25,2.6151]
[1736630990701,10.17464535,191.28,191.25,2.6151]
[1736630991396,7.55984535,191.28,191.21,7.55984535]
[1736630991606,2.6153,191.25,191.19,7.55984535]
[1736630991806,7.55984535,191.26,191.19,7.55984535]
[1736630992205,10.17534535,191.24,191.17,2.6163]
[1736630992408,10.17534535,191.24,191.18,7.55984535]
[1736630993505,10.17534535,191.24,191.21,2.6158]
[1736630997112,7.55984535,191.24,191.21,2.6158]
[1736630998010,7.55984535,191.22,191.06,5.2356]
[1736630998203,7.55984535,191.2,191.14,7.55984535]
[1736630998706,7.55984535,191.2,191.08,31.24810437]
[1736630998904,7.55984535,191.18,191.13,7.55984535]
[1736630999505,7.55984535,191.18,191.15,2.6165]
[1736630999708,7.55984535,191.18,191.08,8.4288]
[1736631000005,7.55984535,191.18,191.13,7.55984535]
[1736631000212,7.55984535,191.14,191.03,7.03482609]
[1736631000515,7.55984535,191.1,191.05,7.55984535]
[1736631001518,7.55984535,191.1,191.07,2.6176]
[1736631001812,7.55984535,191.12,191.07,7.55984535]
[1736631002019,7.55984535,191.12,191.08,2.6174]
[1736631003215,3.235,191.13,191.09,2.6174]
[1736631004120,7.55984535,191.12,191.09,2.6174]
[1736631004322,7.55984535,191.12,191.08,2.6176]
[1736631007916,7.55984535,191.12,191.06,7.55984535]
[1736631008222,1.6059,191.13,191.08,7.55984535]
[1736631008420,7.55984535,191.16,191.1,7.55984535]
[1736631008719,10.17574535,191.2,191.14,7.55984535]
[1736631008920,7.55984535,191.2,191.14,7.55984535]
[1736631009319,7.55984535,191.2,191.15,2.6165]
[1736631009523,5.6279,191.21,191.16,7.55984535]
[1736631010021,10.17574535,191.2,191.15,2.6165]
[1736631011028,7.55984535,191.18,191.0,10.09632609]
[1736631011330,7.55984535,191.16,191.09,7.55984535]
[1736631011628,7.55984535,191.14,191.09,7.55984535]
[1736631011826,7.55984535,191.14,191.01,5.32]
[1736631012021,7.55984535,191.14,191.07,7.55984535]
[1736631012223,3.0121,191.21,191.05,7.55984535]
[1736631012224,7.55984535,191.12,191.05,7.55984535]
[1736631013127,10.17694535,191.12,191.07,2.6176]
[1736631013327,10.17694535,191.12,191.05,7.55984535]
[1736631013525,7.55984535,191.1,191.05,7.55984535]
[1736631013726,7.55984535,191.1,191.06,2.6177]
[1736631014325,7.55984535,191.1,191.05,7.55984535]
[1736631014529,7.55984535,191.1,191.07,2.6177]
[1736631018428,10.17714535,191.1,191.06,2.6178]
[1736631018628,10.17714535,191.1,191.05,7.55984535]
[1736631018930,7.55984535,191.08,190.94,96.36]
[1736631019133,7.55984535,191.06,190.95,3.273]
[1736631019328,7.55984535,191.06,191.0,7.55984535]
[1736631019527,10.17774535,191.06,191.02,2.6184]
[1736631020125,7.55984535,191.04,190.87,28.13930437]
[1736631020326,7.55984535,190.99,190.93,7.55984535]
[1736631021332,7.55984535,190.99,190.87,5.34]
[1736631021333,11.85486959,191.03,190.91,11.85486959]
[1736631021530,11.85486959,191.03,190.94,2.6194]
[1736631021730,11.85486959,191.03,190.91,11.85486959]
[1736631022035,2.6184,191.02,190.91,11.85486959]
[1736631022626,11.85486959,191.03,190.91,11.85486959]
[1736631023128,2.6187,191.01,190.94,2.6194]
[1736631023940,2.6187,191.01,190.95,2.6193]
[1736631024933,11.85486959,191.0,190.88,1.6201]
[1736631025133,11.85486959,191.0,190.88,11.85486959]
[1736631025729,11.85486959,190.97,190.88,11.85486959]
[1736631026732,11.85486959,191.0,190.88,11.85486959]
[1736631027139,2.6189,190.99,190.91,2.6198]
[1736631027340,2.6189,190.99,190.88,11.85486959]
[1736631027829,2.6189,190.98,190.93,2.6196]
[1736631030241,11.85486959,191.0,190.86,8.37128161]
[1736631030542,11.85486959,191.0,190.86,20.2261512]
[1736631031247,2.6194,190.95,190.86,20.2261512]
[1736631032541,2.6194,190.95,190.9,2.62]
[1736631033337,11.85486959,190.97,190.86,20.2261512]
[1736631033637,2.6195,190.94,190.86,20.2261512]
[1736631033837,2.6195,190.94,190.81,1.6201]
[1736631033838,11.85486959,190.94,190.81,1.6201]
[1736631034143,11.85486959,190.94,190.81,13.47496959]
[1736631034546,2.6202,190.9,190.85,2.6207]
[1736631035145,2.6202,190.9,190.86,2.6206]
[1736631035643,2.6202,190.9,190.81,11.85486959]
[1736631036344,2.6202,190.9,190.85,2.6206]
[1736631036545,4.6632,190.96,190.81,11.85486959]
[1736631036841,11.85486959,190.94,190.84,11.85486959]
[1736631037047,11.85486959,190.94,190.8,5.36]
[1736631037347,11.85486959,190.91,190.78,11.85486959]
[1736631037550,11.85486959,190.88,190.82,2.621]
[1736631037746,11.85486959,190.88,190.76,5.78693517]
[1736631038448,11.85486959,190.85,190.76,5.78693517]
[1736631038643,3.0976,190.87,190.76,5.78693517]
[1736631039352,2.6207,190.85,190.8,2.6213]
[1736631039646,3.0976,190.87,190.76,5.78693517]
[1736631039851,2.6198,190.92,190.87,2.6203]
[1736631040350,11.85486959,190.94,190.87,2.6203]
[1736631041851,2.6202,190.89,190.84,2.6209]
[1736631042048,11.85486959,190.88,190.76,5.78693517]
[1736631042249,11.85486959,190.88,190.77,11.85486959]
[1736631042449,2.6206,190.87,190.82,2.6211]
[1736631042645,1.6131,190.9,190.77,11.85486959]
[1736631042849,1.6131,190.9,190.76,5.78693517]
[1736631042850,1.6131,190.9,190.8,11.85486959]
[1736631043044,1.6131,190.9,190.83,2.621]
[1736631043250,1.6131,190.9,190.8,11.85486959]
[1736631043943,2.6202,190.89,190.85,2.6207]
[1736631044150,1.6131,190.9,190.8,11.85486959]
[1736631044749,2.6202,190.89,190.8,11.85486959]
[1736631044950,1.6131,190.9,190.8,11.85486959]
[1736631045352,13.46796959,190.9,190.78,5.38]
[1736631045553,13.46796959,190.9,190.76,5.78693517]
[1736631045747,13.46796959,190.9,190.73,11.85486959]
[1736631045748,11.85486959,190.84,190.73,11.85486959]
[1736631045952,14.47586959,190.84,190.78,2.6217]
[1736631046152,11.85486959,190.84,190.78,2.6217]
[1736631046352,11.85486959,190.84,190.73,11.85486959]
[1736631046652,11.85486959,190.84,190.76,2.6218]
[1736631046848,11.85486959,190.84,190.73,11.85486959]
[1736631047047,2.6213,190.82,190.76,2.6218]
[1736631047460,2.6213,190.82,190.73,11.85486959]
[1736631048056,11.85486959,190.84,190.73,11.85486959]
[1736631048255,2.621,190.83,190.73,11.85486959]
[1736631048655,11.85486959,190.84,190.73,11.85486959]
[1736631048852,6.9953,190.89,190.76,11.85486959]
[1736631048853,11.85486959,190.87,190.76,11.85486959]
[1736631049156,5.38,190.89,190.84,2.6207]
[1736631049358,5.38,190.89,190.79,11.85486959]
[1736631049751,13.46796959,190.9,190.79,11.85486959]
[1736631050260,2.6202,190.89,190.84,2.6208]
[1736631050457,13.46796959,190.9,190.79,11.85486959]
[1736631050956,2.6202,190.89,190.83,2.6209]
[1736631051154,11.85486959,190.87,190.74,11.85486959]
[1736631051351,2.621,190.83,190.77,2.6217]
[1736631051547,2.621,190.83,190.74,11.85486959]
[1736631051953,2.6209,190.85,190.79,2.6214]
[1736631052158,11.85486959,190.87,190.79,2.6214]
[1736631052159,1.5472,190.86,190.79,2.6214]
[1736631052660,11.85486959,190.82,190.7,7.03482609]
[1736631053361,11.85486959,190.79,190.73,2.6223]
[1736631053758,2.6217,190.78,190.73,2.6223]
[1736631055062,2.6218,190.77,190.71,2.6225]
[1736631055262,11.85486959,190.79,190.71,2.6225]
[1736631055464,2.6218,190.77,190.71,2.6225]
[1736631055665,11.85486959,190.79,190.72,2.6225]
[1736631056061,2.6217,190.78,190.73,2.6223]
[1736631057965,2.6218,190.77,190.73,2.6223]
[1736631059261,2.622,190.76,190.72,2.6225]
[1736631059465,11.85486959,190.79,190.69,11.85486959]
[1736631059869,11.85486959,190.79,190.66,4.6272]
[1736631060071,11.85486959,190.79,190.67,11.85486959]
[1736631060559,4.8256,190.78,190.67,11.85486959]
[1736631060765,11.85486959,190.76,190.64,11.85486959]
[1736631061467,2.6224,190.73,190.68,2.623]
[1736631061664,2.6224,190.73,190.64,11.85486959]
[1736631061866,2.6223,190.74,190.69,2.6228]
[1736631062866,11.85486959,190.82,190.7,11.85486959]
[1736631063665,3.2046,190.84,190.73,11.85486959]
[1736631064370,2.6212,190.82,190.73,11.85486959]
[1736631065362,2.6212,190.82,190.77,2.6218]
[1736631067970,3.2046,190.84,190.77,2.6218]
[1736631068269,3.2046,190.84,190.73,11.85486959]
[1736631068469,11.85486959,190.82,190.7,16.42416959]
[1736631068863,11.85486959,190.79,190.7,11.85486959]
[1736631069369,2.622,190.76,190.71,2.6225]
[1736631069564,11.85486959,190.79,190.67,11.85486959]
[1736631069965,3.2046,190.84,190.65,3.2354]
[1736631069966,2.6224,190.74,190.65,3.2354]
[1736631070368,11.85486959,190.76,190.64,13.35596959]
[1736631070569,2.6226,190.72,190.64,13.35596959]
[1736631070975,3.1223,190.75,190.64,13.35596959]
[1736631071167,3.1223,190.75,190.64,11.85486959]
[1736631072677,2.6227,190.71,190.67,2.6231]
[1736631072973,3.1223,190.75,190.67,2.6231]
[1736631073172,3.1223,190.75,190.64,11.85486959]
[1736631073567,2.6225,190.72,190.68,2.623]
[1736631074070,2.6224,190.73,190.69,2.6229]
[1736631074267,11.85486959,190.76,190.64,11.85486959]
[1736631075075,2.6223,190.74,190.64,11.85486959]
[1736631075274,11.85486959,190.76,190.64,11.85486959]
[1736631075472,2.6229,190.69,190.62,4.16159665]
[1736631076372,2.6234,190.66,190.57,28.13930437]
[1736631076572,2.6234,190.66,190.57,11.85486959]
[1736631077069,2.6234,190.66,190.61,2.624]
[1736631078167,2.6232,190.67,190.62,2.6239]
[1736631078577,3.1107,190.69,190.62,2.6239]
[1736631078771,2.6232,190.67,190.62,2.6239]
[1736631078973,3.1107,190.69,190.63,2.6236]
[1736631079172,3.1107,190.69,190.6,11.85486959]
[1736631079371,5.7337,190.69,190.6,11.85486959]
[1736631079575,5.7337,190.69,190.63,2.6237]
[1736631079975,5.46,190.72,190.66,2.6233]
[1736631080177,5.46,190.72,190.63,11.85486959]
[1736631080178,11.85486959,190.73,190.63,11.85486959]
[1736631080479,2.6225,190.72,190.63,11.85486959]
[1736631080672,11.85486959,190.76,190.63,11.85486959]
[1736631081378,2.6224,190.74,190.63,11.85486959]
[1736631081579,4.8259,190.79,190.66,11.85486959]
[1736631081580,16.68076959,190.79,190.66,11.85486959]
[1736631081871,4.8259,190.79,190.73,2.6223]
[1736631082178,11.85486959,190.78,190.66,11.85486959]
[1736631082581,2.6221,190.75,190.66,11.85486959]
[1736631082876,11.85486959,190.78,190.62,1.6463]
[1736631083074,11.85486959,190.78,190.69,2.6229]
[1736631083572,11.85486959,190.78,190.64,11.85486959]
[1736631083773,11.85486959,190.78,190.68,2.623]
[1736631084876,2.6225,190.73,190.68,2.623]
[1736631085780,2.6225,190.73,190.64,11.85486959]
[1736631085981,2.6221,190.75,190.67,11.85486959]
[1736631086374,2.6221,190.75,190.7,2.6227]
[1736631086576,2.6221,190.75,190.67,11.85486959]
[1736631086880,2.6223,190.74,190.67,11.85486959]
[1736631088078,11.85486959,190.78,190.69,2.6229]
[1736631088282,2.6224,190.73,190.67,11.85486959]
[1736631088576,11.85486959,190.75,190.64,11.85486959]
[1736631088781,2.6225,190.73,190.66,2.6233]
[1736631088975,11.85486959,190.72,190.66,2.6233]
[1736631089375,11.85486959,190.72,190.61,14.97016959]
[1736631090081,2.6228,190.7,190.65,2.6234]
[1736631090284,11.85486959,190.75,190.61,14.97016959]
[1736631091079,11.85486959,190.78,190.64,11.85486959]
[1736631091280,11.85486959,190.78,190.67,11.85486959]
[1736631093283,2.6221,190.75,190.67,11.85486959]
[1736631093780,11.85486959,190.78,190.7,2.6227]
[1736631093781,2.6223,190.74,190.7,2.6227]
[1736631094185,11.85486959,190.78,190.67,14.47806959]
[1736631094385,11.85486959,190.78,190.67,11.85486959]
[1736631094783,11.85486959,190.78,190.64,11.85486959]
[1736631095285,11.85486959,190.78,190.67,2.6231]
[1736631095583,11.85486959,190.78,190.64,11.85486959]
[1736631095784,11.85486959,190.78,190.67,11.85486959]
[1736631097182,2.6221,190.75,190.71,2.6225]
[1736631097588,2.6223,190.74,190.7,2.6228]
[1736631099992,2.6225,190.73,190.68,2.623]
[1736631100180,11.85486959,190.78,190.65,1.5426]
[1736631100387,11.85486959,190.78,190.67,11.85486959]
[1736631100582,2.6219,190.77,190.67,11.85486959]
[1736631100980,11.85486959,190.81,190.7,11.85486959]
[1736631101185,14.47626959,190.81,190.7,11.85486959]
[1736631101390,11.85486959,190.81,190.7,11.85486959]
[1736631101583,11.85486959,190.81,190.7,14.97316959]
[1736631101779,2.6213,190.81,190.7,14.97316959]
[1736631101987,15.07746959,190.84,190.7,14.97316959]
[1736631102282,2.6214,190.8,190.76,2.6218]
[1736631102482,15.07746959,190.84,190.73,11.85486959]
[1736631103083,2.6214,190.81,190.76,2.6219]
[1736631103284,15.07746959,190.84,190.76,2.6219]
[1736631104191,2.6214,190.8,190.76,2.6219]
[1736631108993,2.6215,190.8,190.75,2.6221]
[1736631112702,2.6215,190.8,190.76,2.6219]
[1736631113994,2.6215,190.8,190.77,2.6218]
[1736631114198,2.6215,190.8,190.73,11.85486959]
[1736631114797,11.85486959,190.84,190.73,11.85486959]
[1736631114998,1.5402,190.85,190.73,11.85486959]
[1736631115198,1.5402,190.85,190.74,1.6154]
[1736631115400,1.5402,190.85,190.76,11.85486959]
[1736631116101,2.621,190.83,190.79,2.6215]
[1736631116596,11.85486959,190.87,190.76,11.85486959]
[1736631116801,2.6209,190.84,190.8,2.6214]
[1736631117700,3.1572,190.89,190.76,11.85486959]
[1736631117906,2.6208,190.85,190.76,11.85486959]
[1736631118505,2.6208,190.85,190.81,2.6212]
[1736631119103,2.6208,190.85,190.82,2.6211]
[1736631119304,2.6206,190.86,190.82,2.6211]
[1736631119600,3.1572,190.89,190.79,11.85486959]
[1736631119806,3.1572,190.89,190.83,2.6209]
[1736631120506,1.4965,190.92,190.82,11.85486959]
[1736631121905,11.85486959,190.9,190.79,11.85486959]
[1736631122412,2.6208,190.85,190.81,2.6212]
[1736631123007,2.6205,190.87,190.84,2.6208]
[1736631123206,1.4965,190.92,190.79,11.85486959]
[1736631123406,1.4965,190.92,190.82,11.85486959]
[1736631123701,3.1147,190.95,190.82,11.85486959]
[1736631123702,3.1147,190.95,190.85,11.85486959]
[1736631124104,3.1147,190.95,190.88,11.85486959]
[1736631124509,5.7341,190.95,190.91,2.6199]
[1736631124705,158.10640779,191.0,190.88,11.85486959]
[1736631125111,2.619,190.98,190.93,2.6195]
[1736631125311,2.619,190.98,190.91,11.85486959]
[1736631125512,2.619,190.98,190.94,2.6194]
[1736631125706,1.6381,191.0,190.91,11.85486959]
[1736631125910,2.6185,191.01,190.91,11.85486959]
[1736631126109,11.85486959,191.03,190.91,11.85486959]
[1736631126517,2.6189,190.99,190.91,11.85486959]
[1736631127720,2.6187,191.01,190.95,2.6193]
[1736631128116,2.6187,191.01,190.94,2.6195]
[1736631128315,2.6187,191.01,190.91,11.85486959]
[1736631128819,2.6187,191.0,190.95,2.6192]
[1736631129119,11.85486959,191.03,190.95,2.6192]
[1736631130114,2.6187,191.0,190.95,2.6192]
[1736631130924,2.6191,190.98,190.93,2.6196]
[1736631133227,2.6193,190.96,190.91,11.85486959]
[1736631133427,11.85486959,191.0,190.88,11.85486959]
[1736631133628,11.85486959,190.97,190.85,11.85486959]
[1736631133824,3.0494,190.96,190.85,11.85486959]
[1736631134126,11.85486959,190.94,190.83,1.5077]
[1736631134322,2.6203,190.89,190.84,2.6208]
[1736631134519,11.85486959,190.94,190.82,11.85486959]
[1736631135024,11.85486959,190.94,190.83,2.6209]
[1736631135227,11.85486959,190.91,190.82,11.85486959]
[1736631135428,11.85486959,190.91,190.79,11.85486959]
[1736631135621,1.6435,190.9,190.79,11.85486959]
[1736631136327,1.6435,190.9,190.8,2.6213]
[1736631137326,2.6207,190.86,190.8,2.6213]
[1736631137528,11.85486959,190.88,190.76,11.85486959]
[1736631137729,2.6212,190.82,190.76,14.47676959]
[1736631138026,3.0667,190.87,190.76,11.85486959]
[1736631138529,2.6211,190.82,190.76,11.85486959]
[1736631138717,3.0667,190.87,190.74,11.85486959]
[1736631138925,2.621,190.83,190.78,2.6217]
[1736631139126,3.0667,190.87,190.77,11.85486959]
[1736631139824,2.6209,190.85,190.8,2.6214]
[1736631140426,2.6206,190.86,190.81,2.6213]
[1736631140635,1.6435,190.9,190.8,11.85486959]
[1736631140824,3.2034,190.99,190.83,11.85486959]
[1736631141131,11.85486959,190.95,190.83,11.85486959]
[1736631141626,2.6201,190.9,190.85,2.6207]
[1736631141825,11.85486959,190.95,190.83,11.85486959]
[1736631142728,2.6202,190.9,190.85,2.6207]
[1736631143324,11.85486959,190.95,190.86,2.6206]
[1736631143925,11.85486959,190.95,190.86,11.85486959]
[1736631144230,5.42,190.97,190.86,11.85486959]
[1736631144833,13.50786959,190.98,190.86,11.85486959]
[1736631145232,2.6196,190.94,190.86,11.85486959]
[1736631146335,2.6196,190.94,190.89,2.6201]
[1736631146834,13.50786959,190.98,190.86,11.85486959]
[1736631147329,11.85486959,190.95,190.83,11.85486959]
[1736631148233,2.6203,190.88,190.83,11.85486959]
[1736631149325,2.6203,190.88,190.84,2.6209]
[1736631151236,2.6203,190.88,190.83,14.47586959]
[1736631151736,11.85486959,190.95,190.83,11.85486959]
[1736631152429,2.6203,190.89,190.84,2.6209]
[1736631153837,11.85486959,190.95,190.77,5.42]
[1736631154038,2.62,190.91,190.86,2.6205]
[1736631155041,2.6201,190.9,190.86,2.6205]
[1736631155237,11.85486959,190.95,190.87,2.6204]
[1736631155436,2.6197,190.93,190.88,11.85486959]
[1736631155638,18.92786959,190.98,190.88,11.85486959]
[1736631155942,2.6195,190.95,190.88,11.85486959]
[1736631156442,2.6195,190.95,190.91,11.85486959]
[1736631156643,3.2034,190.99,190.91,11.85486959]
[1736631156839,5.42,191.04,190.91,11.85486959]
[1736631157040,10.2414,191.04,190.91,11.85486959]
[1736631157241,2.619,190.98,190.94,2.6195]
[1736631157636,10.2414,191.04,190.91,11.85486959]
[1736631157842,2.6189,190.99,190.91,11.85486959]
[1736631158739,2.6189,190.99,190.93,2.6196]
[1736631159042,2.6189,190.99,190.91,11.85486959]
[1736631159243,4.8214,191.04,190.95,2.6193]
[1736631159444,4.8214,191.04,190.87,3.0796]
[1736631159445,2.6187,191.01,190.94,11.85486959]
[1736631160747,2.6185,191.01,190.95,2.6193]
[1736631161042,2.6185,191.01,190.94,11.85486959]
[1736631161440,4.8214,191.04,190.94,11.85486959]
[1736631161634,2.6188,191.0,190.94,11.85486959]
[1736631162044,4.8214,191.04,190.94,11.85486959]
[1736631162244,2.6184,191.02,190.94,11.85486959]
[1736631162740,2.6184,191.02,190.97,2.619]
[1736631163645,2.6187,191.0,190.96,2.6192]
[1736631164447,2.6185,191.01,190.97,2.6191]
[1736631166746,2.6181,191.04,190.98,2.6188]
[1736631166951,11.85486959,191.1,191.0,11.85486959]
[1736631168341,2.6179,191.06,191.01,2.6185]
[1736631168548,16.41806959,191.13,191.0,11.85486959]
[1736631168738,2.6177,191.08,191.03,2.6182]
[1736631170041,16.41806959,191.13,191.03,2.6182]
[1736631170246,2.6178,191.07,191.02,2.6184]
[1736631170446,16.41806959,191.13,191.0,11.85486959]
[1736631170649,2.6177,191.07,191.02,2.6184]
[1736631172556,2.6177,191.07,191.03,2.6183]
[1736631173047,16.41806959,191.13,191.03,11.85486959]
[1736631173349,2.617,191.12,191.08,2.6176]
[1736631173949,2.6169,191.13,191.08,2.6176]
[1736631175352,16.61556959,191.19,191.06,14.47266959]
[1736631175548,11.85486959,191.16,191.06,14.47266959]
[1736631176156,2.6172,191.11,191.06,14.47266959]
[1736631176760,11.85486959,191.16,191.03,11.85486959]
[1736631176961,2.6173,191.1,191.05,2.618]
[1736631177260,2.6173,191.1,191.03,11.85486959]
[1736631178161,2.617,191.13,191.03,11.85486959]
[1736631178462,11.85486959,191.16,191.03,11.85486959]
[1736631178657,2.6169,191.13,191.06,11.85486959]
[1736631179558,2.6172,191.11,191.06,14.47256959]
[1736631179961,2.6172,191.11,191.06,11.85486959]
[1736631180261,2.6172,191.11,191.07,2.6177]
[1736631180455,2.6172,191.11,191.06,11.85486959]
[1736631180660,2.6172,191.11,191.06,14.47256959]
[1736631181454,2.6167,191.15,191.09,11.85486959]
[1736631181655,4.7607,191.19,191.09,11.85486959]
[1736631181853,4.7607,191.19,191.12,11.85486959]
[1736631182059,2.6162,191.18,191.12,11.85486959]
[1736631182464,11.85486959,191.23,191.12,11.85486959]
[1736631183065,11.85486959,191.23,191.12,14.47176959]
[1736631183263,2.6164,191.17,191.12,14.47176959]
[1736631183868,2.6164,191.17,191.13,2.6168]
[1736631184968,2.6162,191.18,191.14,2.6167]
[1736631185168,11.85486959,191.25,191.14,2.6167]
[1736631185360,11.85486959,191.25,191.12,11.85486959]
[1736631185563,2.6162,191.18,191.14,2.6167]
[1736631185768,11.85486959,191.22,191.12,11.85486959]
[1736631185968,11.85486959,191.22,191.09,11.85486959]
[1736631186166,11.85486959,191.19,191.09,14.47226959]
[1736631186374,11.85486959,191.19,191.09,11.85486959]
[1736631186866,11.85486959,191.22,191.09,11.85486959]
[1736631187170,11.85486959,191.22,191.12,11.85486959]
[1736631187370,2.6161,191.19,191.15,2.6166]
[1736631187759,11.85486959,191.25,191.12,11.85486959]
[1736631188867,2.6163,191.18,191.13,2.6168]
[1736631189068,11.85486959,191.25,191.13,2.6168]
[1736631189465,2.6163,191.18,191.13,2.6168]
[1736631189769,2.6163,191.18,191.14,2.6167]
[1736631190574,11.85486959,191.25,191.14,2.6167]
[1736631190773,2.6164,191.17,191.14,2.6167]
[1736631190974,2.6164,191.17,191.12,14.47176959]
[1736631191176,2.6168,191.14,191.09,11.85486959]